[Event "Cesenatico Open 2019"]
[Site "Cesenatico"]
[Date "2019.09.06"]
[Round "7"]
[White "Loiacono, Antonio"]
[Black "Di Trapani, Davide"]
[Result "1/2-1/2"]
[ECO "B51"]
[WhiteElo "2282"]
[BlackElo "2181"]
[Annotator "ChessBase"]
[PlyCount "140"]
[EventDate "2019.09.01"]
[EventType "swiss"]
[EventCountry "ITA"]
[SourceTitle "playchess.com"]
[Source "ChessBase"]
[SourceQuality "1"]
[TimeControl "40/6000:900"]

1. e4 {[%emt 0:00:00]} c5 {[%emt 0:00:00]} 2. Nf3 {[%emt 0:00:00]} d6 {[%emt 0:00:00]} 3. Bb5+ {[%emt 0:00:00]} Nd7 {[%emt 0:00:00]} 4. O-O {[%emt 0:00:00]} a6 {[%emt 0:00:00]} 5. Bd3 {[%emt 0:00:00]} Ngf6 {[%emt 0:00:00]} 6. Re1 {[%emt 0:00:00]} g6 {[%emt 0:00:00]} 7. c3 {[%emt 0:00:00]} Bg7 {[%emt 0:00:00]} 8. Bc2 O-O {[%emt 0:02:00]} 9. d4 {[%emt 0:01:00]} cxd4 {[%emt 0:03:00]} 10. cxd4 {[%emt 0:00:00]} b5 {[%emt 0:00:00]} 11. h3 {[%emt 0:00:00]} Bb7 {[%emt 0:00:00]} 12. Bf4 {[%emt 0:01:00]} Rc8 {[%emt 0:03:00]} 13. Nbd2 {[%emt 0:01:00]} Nb6 {[%emt 0:38:00]} 14. Bh2 {[%emt 0:07:00]} Nfd7 {[%emt 0:00:00]} 15. Bb3 Nc4 {[%emt 0:00:00]} 16. Bxc4 {[%emt 0:08:00]} bxc4 17. Rc1 {[%emt 0:00:00]} d5 {[%emt 0:00:00]} 18. exd5 {[%emt 0:04:00]} Bxd5 19. Qe2 {[%emt 0:00:00]} Nb6 {[%emt 0:00:00]} 20. Qxe7 {[%emt 0:24:00]} Qxe7 {[%emt 0:00:00]} 21. Rxe7 {[%emt 0:00:00]} Na4 {[%emt 0:05:00]} 22. Rc2 {[%emt 0:00:00]} Nxb2 {[%emt 0:12:00]} 23. Rxb2 {[%emt 0:15:00]} c3 {[%emt 0:00:00]} 24. Rc2 {[%emt 0:00:00]} cxd2 {[%emt 0:00:00]} 25. Rxd2 {[%emt 0:00:00]} Rc1+ {[%emt 0:00:00]} 26. Re1 {[%emt 0:01:00]} Rfc8 {[%emt 0:01:00]} 27. Rdd1 Rxd1 {[%emt 0:00:00]} 28. Rxd1 {[%emt 0:09:00]} Bxa2 29. Bg3 {[%emt 0:01:00]} Bd5 {[%emt 0:03:00]} 30. Ra1 {[%emt 0:01:00]} Ra8 31. Ne5 {[%emt 0:03:00]} a5 {[%emt 0:09:00]} 32. Ra3 Ra7 {[%emt 0:00:00]} 33. Rc3 {[%emt 0:05:11]} h5 {[%emt 0:04:00]} 34. Rc8+ Kh7 {[%emt 0:00:00]} 35. Rc5 {[%emt 0:01:47]} a4 {[%emt 0:03:50]} 36. Rxd5 {[%emt 0:00:52]} a3 {[%emt 0:00:00]} 37. Rc5 {[%emt 0:00:00]} a2 {[%emt 0:00:00]} 38. Rc1 {[%emt 0:00:58]} a1=Q {[%emt 0:00:00]} 39. Rxa1 {[%emt 0:00:00]} Rxa1+ {[%emt 0:00:00]} 40. Kh2 {[%emt 0:00:00]} Bxe5 {[%emt 0:00:00]} 41. dxe5 {[%emt 0:16:11]} g5 {[%emt 0:18:01]} 42. h4 {[%emt 0:00:00]} g4 {[%emt 0:03:16]} 43. Bf4 {[%emt 0:04:41]} Kg6 44. g3 {[%emt 0:00:52]} Kf5 {[%emt 0:00:00]} 45. Kg2 Ke4 {[%emt 0:00:00]} 46. Be3 {[%emt 0:02:51]} Kxe5 47. Bf4+ {[%emt 0:00:03]} Ke4 {[%emt 0:00:00]} 48. Bc7 Kd3 {[%emt 0:00:00]} 49. Bd6 {[%emt 0:00:00]} Ke2 {[%emt 0:04:18]} 50. Be5 {[%emt 0:00:00]} Ra3 {[%emt 0:00:00]} 51. Bd6 {[%emt 0:00:00]} Rd3 {[%emt 0:00:00]} 52. Bc7 {[%emt 0:00:00]} Rf3 {[%emt 0:00:00]} 53. Bb6 {[%emt 0:00:00]} f5 {[%emt 0:00:00]} 54. Bc5 {[%emt 0:00:00]} f4 {[%emt 0:00:00]} 55. gxf4 {[%emt 0:00:00]} Rxf4 {[%emt 0:00:00]} 56. Bb6 {[%emt 0:00:00]} Rf3 {[%emt 0:00:00]} 57. Bc5 {[%emt 0:02:06]} Kd3 {[%emt 0:00:00]} 58. Be7 {[%emt 0:00:00]} Ke4 {[%emt 0:00:00]} 59. Bd8 {[%emt 0:00:00]} Rd3 {[%emt 0:00:00]} 60. Be7 {[%emt 0:01:07]} g3 {[%emt 0:03:14]} 61. fxg3 {[%emt 0:00:00]} Rd2+ {[%emt 0:00:00]} 62. Kh3 {[%emt 0:00:00]} Kf3 {[%emt 0:00:00]} 63. Bg5 {[%emt 0:00:00]} Rd1 {[%emt 0:00:00]} 64. Kh2 {[%emt 0:00:00]} Ra1 {[%emt 0:00:00]} 65. Bf4 {[%emt 0:00:00]} Kg4 {[%emt 0:00:00]} 66. Kg2 {[%emt 0:00:00]} Ra2+ {[%emt 0:00:00]} 67. Kg1 {[%emt 0:00:00]} Kf3 {[%emt 0:00:00]} 68. Be5 {[%emt 0:00:00]} Rg2+ {[%emt 0:00:00]} 69. Kh1 {[%emt 0:00:00]} Re2 {[%emt 0:00:00]} 70. Bf4 {[%emt 0:00:00]} Re1+ {[%emt 0:00:00]} 1/2-1/2

[Event "Cesenatico Open 2019"]
[Site "Cesenatico"]
[Date "2019.09.06"]
[Round "7"]
[White "Stromboli, Carlo"]
[Black "Di Benedetto, Edoardo"]
[Result "1/2-1/2"]
[ECO "C01"]
[WhiteElo "2270"]
[BlackElo "2405"]
[Annotator "ChessBase"]
[PlyCount "97"]
[EventDate "2019.09.01"]
[EventType "swiss"]
[EventCountry "ITA"]
[SourceTitle "playchess.com"]
[Source "ChessBase"]
[SourceQuality "1"]
[TimeControl "40/6000:900"]

1. e4 {[%emt 0:05:00]} e6 {[%emt 0:00:00]} 2. d4 {[%emt 0:01:00]} d5 {[%emt 0:08:00]} 3. Bd3 {[%emt 0:02:00]} dxe4 {[%emt 0:00:00]} 4. Bxe4 {[%emt 0:00:00]} Nf6 {[%emt 0:00:00]} 5. Bf3 {[%emt 0:02:00]} c5 {[%emt 0:00:00]} 6. Ne2 Nc6 {[%emt 0:00:00]} 7. Be3 {[%emt 0:06:00]} cxd4 {[%emt 0:00:00]} 8. Nxd4 Ne5 {[%emt 0:00:00]} 9. Nc3 {[%emt 0:04:00]} Bb4 {[%emt 0:00:00]} 10. Ndb5 {[%emt 0:00:00]} Bd7 {[%emt 0:00:00]} 11. a3 {[%emt 0:04:00]} Bxc3+ 12. Nxc3 {[%emt 0:01:00]} Bc6 {[%emt 0:00:00]} 13. Bxc6+ {[%emt 0:00:00]} Nxc6 {[%emt 0:00:00]} 14. Qxd8+ {[%emt 0:23:00]} Rxd8 {[%emt 0:00:00]} 15. Rd1 {[%emt 0:00:00]} Rxd1+ {[%emt 0:00:00]} 16. Kxd1 {[%emt 0:05:00]} Nd7 {[%emt 0:53:00]} 17. Nb5 {[%emt 0:08:00]} Ke7 {[%emt 0:00:00]} 18. Nd4 {[%emt 0:07:00]} Nxd4 {[%emt 0:00:00]} 19. Bxd4 {[%emt 0:00:00]} e5 {[%emt 0:00:00]} 20. Be3 Ke6 {[%emt 0:00:00]} 21. Ke2 {[%emt 0:03:00]} Rc8 {[%emt 0:00:00]} 22. Rc1 {[%emt 0:00:00]} a6 {[%emt 0:00:00]} 23. c4 {[%emt 0:07:00]} f5 {[%emt 0:19:05]} 24. f3 {[%emt 0:02:05]} Nb8 {[%emt 0:00:00]} 25. b4 {[%emt 0:02:19]} b5 {[%emt 0:00:00]} 26. Kd3 {[%emt 0:13:55]} Nd7 {[%emt 0:00:00]} 27. a4 {[%emt 0:01:57]} e4+ {[%emt 0:00:00]} 28. fxe4 {[%emt 0:00:00]} Ne5+ {[%emt 0:00:00]} 29. Ke2 {[%emt 0:00:00]} Rxc4 {[%emt 0:00:00]} 30. exf5+ Kxf5 {[%emt 0:00:00]} 31. Rxc4 {[%emt 0:00:12]} Nxc4 {[%emt 0:17:58]} 32. axb5 {[%emt 0:00:00]} axb5 {[%emt 0:00:00]} 33. Bd4 {[%emt 0:00:00]} g5 {[%emt 0:00:00]} 34. Kd3 {[%emt 0:00:08]} Ne5+ {[%emt 0:00:00]} 35. Ke2 {[%emt 0:00:49]} Ke4 {[%emt 0:00:00]} 36. Be3 {[%emt 0:00:00]} g4 37. Bc5 {[%emt 0:00:00]} Nd3 {[%emt 0:00:00]} 38. Bd6 {[%emt 0:00:00]} Kd4 {[%emt 0:00:00]} 39. h3 {[%emt 0:00:00]} gxh3 {[%emt 0:00:00]} 40. gxh3 {[%emt 0:00:00]} Kc4 {[%emt 0:00:00]} 41. Kf3 {[%emt 0:01:42]} Nxb4 {[%emt 0:00:00]} 42. Kg4 {[%emt 0:00:43]} Nd3 {[%emt 0:00:00]} 43. Kh5 {[%emt 0:00:00]} Nc5 {[%emt 0:00:00]} 44. Kh6 {[%emt 0:11:56]} b4 {[%emt 0:00:00]} 45. h4 {[%emt 0:00:00]} Kd5 {[%emt 0:00:00]} 46. Bf8 {[%emt 0:00:04]} b3 47. Bg7 {[%emt 0:00:00]} Nd3 {[%emt 0:00:00]} 48. Ba1 {[%emt 0:00:00]} Nf4 {[%emt 0:00:00]} 49. Kxh7 {[%emt 0:00:00]} 1/2-1/2

[Event "Cesenatico Open 2019"]
[Site "Cesenatico"]
[Date "2019.09.06"]
[Round "7"]
[White "Dittmar, Peter"]
[Black "Dobboletta, Alex"]
[Result "1/2-1/2"]
[ECO "E48"]
[WhiteElo "2259"]
[BlackElo "2176"]
[Annotator "ChessBase"]
[PlyCount "164"]
[EventDate "2019.09.01"]
[EventType "swiss"]
[EventCountry "ITA"]
[SourceTitle "playchess.com"]
[Source "ChessBase"]
[SourceQuality "1"]
[TimeControl "40/6000:900"]

1. d4 {[%emt 0:00:00]} Nf6 {[%emt 0:04:00]} 2. c4 {[%emt 0:00:00]} e6 {[%emt 0:00:00]} 3. Nc3 {[%emt 0:00:00]} Bb4 {[%emt 0:00:00]} 4. e3 {[%emt 0:00:00]} O-O 5. Bd3 {[%emt 0:00:00]} d5 {[%emt 0:01:00]} 6. Nge2 {[%emt 0:00:00]} c6 {[%emt 0:00:00]} 7. O-O {[%emt 0:00:00]} Nbd7 {[%emt 0:01:00]} 8. a3 {[%emt 0:15:00]} Be7 {[%emt 0:09:00]} 9. Ng3 {[%emt 0:00:00]} dxc4 {[%emt 0:03:00]} 10. Bxc4 {[%emt 0:00:00]} c5 {[%emt 0:00:00]} 11. dxc5 {[%emt 0:00:00]} Bxc5 {[%emt 0:00:00]} 12. b4 {[%emt 0:00:00]} Be7 {[%emt 0:00:00]} 13. Bb2 {[%emt 0:00:00]} a6 {[%emt 0:10:00]} 14. Be2 {[%emt 0:00:00]} b5 {[%emt 0:04:00]} 15. Bf3 {[%emt 0:17:00]} Rb8 {[%emt 0:00:00]} 16. Qd4 {[%emt 0:00:00]} Nb6 {[%emt 0:04:00]} 17. Nce4 {[%emt 0:00:00]} Nc4 {[%emt 0:01:00]} 18. Qa7 {[%emt 0:00:00]} Nxe4 {[%emt 0:00:00]} 19. Bxe4 {[%emt 0:00:00]} Rb6 {[%emt 0:24:00]} 20. Rad1 {[%emt 0:00:00]} Rd6 {[%emt 0:33:34]} 21. Rxd6 {[%emt 0:00:00]} Qxd6 {[%emt 0:00:00]} 22. Bd4 Qd7 {[%emt 0:00:00]} 23. Qxd7 {[%emt 0:01:00]} Bxd7 24. Ra1 {[%emt 0:08:00]} Rc8 {[%emt 0:00:00]} 25. f4 {[%emt 0:01:00]} a5 26. bxa5 {[%emt 0:02:00]} Nxa5 {[%emt 0:00:00]} 27. Bd3 Nc4 {[%emt 0:00:00]} 28. Bxc4 {[%emt 0:04:00]} bxc4 {[%emt 0:00:00]} 29. Ne4 {[%emt 0:04:00]} Ra8 {[%emt 0:00:00]} 30. Bc5 {[%emt 0:38:14]} Bxc5 {[%emt 0:00:00]} 31. Nxc5 {[%emt 0:00:00]} Bc6 {[%emt 0:00:00]} 32. Rb1 {[%emt 0:00:00]} Kf8 {[%emt 0:00:00]} 33. Rb6 {[%emt 0:00:00]} Be8 34. Rb4 {[%emt 0:00:00]} Rxa3 {[%emt 0:00:00]} 35. Rxc4 Rxe3 {[%emt 0:00:00]} 36. Kf2 {[%emt 0:00:00]} Ra3 {[%emt 0:00:00]} 37. Nb7 {[%emt 0:00:00]} Ra2+ {[%emt 0:00:00]} 38. Kg3 {[%emt 0:03:16]} Rd2 {[%emt 0:00:00]} 39. Na5 {[%emt 0:00:00]} Ke7 {[%emt 0:02:32]} 40. Nc6+ {[%emt 0:00:00]} Bxc6 {[%emt 0:01:51]} 41. Rxc6 {[%emt 0:01:30]} h6 42. h4 {[%emt 0:00:00]} h5 {[%emt 0:09:57]} 43. Kf3 {[%emt 0:13:57]} Rd3+ {[%emt 0:00:03]} 44. Ke2 {[%emt 0:00:00]} Rd6 {[%emt 0:00:37]} 45. Rc5 {[%emt 0:00:00]} Rd5 {[%emt 0:00:00]} 46. Rc7+ {[%emt 0:00:00]} Rd7 47. Rc5 {[%emt 0:00:00]} g6 {[%emt 0:00:00]} 48. g3 {[%emt 0:00:31]} Ra7 {[%emt 0:00:00]} 49. Rc3 {[%emt 0:00:00]} f6 {[%emt 0:00:33]} 50. Kf3 {[%emt 0:00:00]} Kd6 {[%emt 0:00:04]} 51. Rd3+ {[%emt 0:00:00]} Ke7 {[%emt 0:01:55]} 52. Rb3 {[%emt 0:00:00]} Rd7 53. Ra3 e5 {[%emt 0:00:00]} 54. fxe5 {[%emt 0:00:00]} fxe5 {[%emt 0:00:00]} 55. Ke4 {[%emt 0:00:00]} Ke6 {[%emt 0:00:00]} 56. Ra6+ {[%emt 0:00:00]} Rd6 {[%emt 0:00:00]} 57. Ra8 {[%emt 0:00:00]} Rd4+ {[%emt 0:00:00]} 58. Ke3 {[%emt 0:00:00]} Rb4 {[%emt 0:00:00]} 59. Ra6+ {[%emt 0:00:00]} Kf5 60. Kf2 {[%emt 0:00:00]} Rb2+ {[%emt 0:00:00]} 61. Ke3 Rb3+ {[%emt 0:00:00]} 62. Kf2 {[%emt 0:00:00]} Rd3 {[%emt 0:00:00]} 63. Rb6 {[%emt 0:00:00]} Ra3 {[%emt 0:00:00]} 64. Rb4 {[%emt 0:03:48]} Ra6 {[%emt 0:01:10]} 65. Kf3 {[%emt 0:00:00]} Re6 {[%emt 0:00:16]} 66. Rb5 {[%emt 0:00:00]} Rd6 {[%emt 0:00:00]} 67. Rb4 {[%emt 0:00:00]} Rd4 {[%emt 0:00:00]} 68. Rb6 {[%emt 0:00:00]} e4+ {[%emt 0:00:00]} 69. Kf2 {[%emt 0:00:00]} Rd2+ {[%emt 0:00:00]} 70. Ke3 {[%emt 0:00:00]} Rd3+ {[%emt 0:00:00]} 71. Kf2 {[%emt 0:00:00]} Rd5 {[%emt 0:00:00]} 72. Ke3 Ra5 {[%emt 0:00:35]} 73. Kf2 {[%emt 0:00:00]} g5 {[%emt 0:00:00]} 74. hxg5 {[%emt 0:00:00]} Kxg5 {[%emt 0:00:00]} 75. Rb8 {[%emt 0:01:12]} Ra3 {[%emt 0:00:00]} 76. Rg8+ {[%emt 0:00:00]} Kf5 77. Rf8+ {[%emt 0:00:00]} Ke5 {[%emt 0:00:03]} 78. Re8+ {[%emt 0:00:00]} Kd4 {[%emt 0:00:00]} 79. Rd8+ {[%emt 0:00:00]} Kc4 {[%emt 0:00:00]} 80. Rc8+ {[%emt 0:00:00]} Kd3 {[%emt 0:00:00]} 81. Rd8+ {[%emt 0:00:00]} Kc2 {[%emt 0:00:00]} 82. Rd4 {[%emt 0:00:00]} Rf3+ {[%emt 0:00:00]} 1/2-1/2

[Event "Cesenatico Open 2019"]
[Site "Cesenatico"]
[Date "2019.09.06"]
[Round "7"]
[White "Brancaleoni, Maurizio"]
[Black "Paleologu, Vladimir"]
[Result "1/2-1/2"]
[ECO "A42"]
[WhiteElo "2202"]
[BlackElo "2105"]
[Annotator "ChessBase"]
[PlyCount "43"]
[EventDate "2019.09.01"]
[EventType "swiss"]
[EventCountry "ITA"]
[SourceTitle "playchess.com"]
[Source "ChessBase"]
[SourceQuality "1"]
[TimeControl "40/6000:900"]

1. Nf3 {[%emt 0:00:00]} d6 {[%emt 0:12:00]} 2. d4 {[%emt 0:00:00]} g6 {[%emt 0:00:00]} 3. c4 {[%emt 0:00:00]} Bg7 {[%emt 0:00:00]} 4. Nc3 {[%emt 0:00:00]} c6 5. e4 {[%emt 0:00:00]} e5 {[%emt 0:01:00]} 6. Be2 {[%emt 0:00:00]} Nd7 {[%emt 0:00:00]} 7. O-O {[%emt 0:02:00]} Nh6 {[%emt 0:03:00]} 8. dxe5 {[%emt 0:28:00]} dxe5 {[%emt 0:14:00]} 9. b4 {[%emt 0:00:00]} O-O {[%emt 0:03:00]} 10. b5 {[%emt 0:00:00]} Re8 {[%emt 0:01:00]} 11. Rb1 {[%emt 0:00:00]} Qc7 12. Ba3 {[%emt 0:00:00]} Bf8 {[%emt 0:02:00]} 13. Qc1 {[%emt 0:00:00]} Kg7 14. Rd1 {[%emt 0:00:00]} Nc5 {[%emt 0:05:00]} 15. h3 f6 {[%emt 0:00:00]} 16. Qe3 {[%emt 0:00:00]} Ne6 {[%emt 0:01:00]} 17. Bxf8+ Rxf8 {[%emt 0:00:00]} 18. c5 {[%emt 0:00:00]} Nf4 {[%emt 0:02:00]} 19. Bf1 {[%emt 0:00:00]} Nf7 {[%emt 0:03:00]} 20. Nd2 {[%emt 0:00:00]} Rd8 21. Bc4 {[%emt 0:08:00]} Ng5 {[%emt 0:06:00]} 22. Bf1 {[%emt 0:00:00]} 1/2-1/2

[Event "Cesenatico Open 2019"]
[Site "Cesenatico"]
[Date "2019.09.06"]
[Round "7"]
[White "Medici, Simone"]
[Black "Loiacono, Leonardo"]
[Result "1/2-1/2"]
[ECO "D43"]
[WhiteElo "2201"]
[BlackElo "2293"]
[Annotator "ChessBase"]
[PlyCount "64"]
[EventDate "2019.09.01"]
[EventType "swiss"]
[EventCountry "ITA"]
[SourceTitle "playchess.com"]
[Source "ChessBase"]
[SourceQuality "1"]
[TimeControl "40/6000:900"]

1. d4 {[%emt 0:00:00]} d5 {[%emt 0:00:00]} 2. c4 {[%emt 0:00:00]} c6 {[%emt 0:00:00]} 3. Nf3 {[%emt 0:00:00]} Nf6 {[%emt 0:00:00]} 4. Nc3 {[%emt 0:00:00]} e6 5. Bg5 {[%emt 0:00:00]} h6 {[%emt 0:00:00]} 6. Bxf6 Qxf6 {[%emt 0:00:00]} 7. e3 {[%emt 0:03:00]} g6 {[%emt 0:00:00]} 8. Rc1 {[%emt 0:00:00]} Nd7 {[%emt 0:00:00]} 9. Bd3 {[%emt 0:04:00]} Bg7 {[%emt 0:00:00]} 10. e4 {[%emt 0:01:00]} dxc4 {[%emt 0:04:00]} 11. Bxc4 {[%emt 0:07:00]} O-O {[%emt 0:15:00]} 12. e5 {[%emt 0:04:00]} Qe7 {[%emt 0:00:00]} 13. O-O {[%emt 0:01:00]} c5 {[%emt 0:00:00]} 14. Ne4 {[%emt 0:09:00]} cxd4 {[%emt 0:00:00]} 15. Qxd4 {[%emt 0:00:00]} Nb6 {[%emt 0:00:00]} 16. Nf6+ {[%emt 0:02:00]} Kh8 {[%emt 0:00:00]} 17. Rfd1 {[%emt 0:00:00]} Nxc4 {[%emt 0:00:00]} 18. Rxc4 {[%emt 0:05:00]} b5 {[%emt 0:24:00]} 19. Rc6 {[%emt 0:07:00]} Bb7 {[%emt 0:00:00]} 20. Rd6 {[%emt 0:00:00]} Bxf3 {[%emt 0:00:00]} 21. Rd7 {[%emt 0:09:00]} Bxf6 {[%emt 0:00:00]} 22. exf6 Qxd7 {[%emt 0:00:00]} 23. Qxd7 {[%emt 0:03:00]} Bxd1 24. Qxd1 {[%emt 0:00:00]} Rfd8 {[%emt 0:00:00]} 25. Qc1 {[%emt 0:00:00]} Kh7 26. h4 {[%emt 0:02:00]} Rac8 {[%emt 0:00:00]} 27. Qe3 {[%emt 0:00:00]} Rc7 {[%emt 0:00:00]} 28. h5 {[%emt 0:07:00]} g5 {[%emt 0:00:00]} 29. Qe4+ {[%emt 0:06:00]} Kh8 {[%emt 0:00:00]} 30. Qe5 {[%emt 0:06:00]} Rc1+ 31. Kh2 {[%emt 0:00:00]} a6 {[%emt 0:04:00]} 32. a4 {[%emt 0:06:36]} bxa4 {[%emt 0:00:00]} 1/2-1/2

[Event "Cesenatico Open 2019"]
[Site "Cesenatico"]
[Date "2019.09.06"]
[Round "7"]
[White "Marzano, Carlo"]
[Black "Friedrich, Norbert"]
[Result "1-0"]
[ECO "D15"]
[WhiteElo "2109"]
[BlackElo "2306"]
[Annotator "ChessBase"]
[PlyCount "75"]
[EventDate "2019.09.01"]
[EventType "swiss"]
[EventCountry "ITA"]
[SourceTitle "playchess.com"]
[Source "ChessBase"]
[SourceQuality "1"]
[TimeControl "40/6000:900"]

1. d4 {[%emt 0:00:00]} d5 {[%emt 0:00:00]} 2. c4 {[%emt 0:00:00]} c6 {[%emt 0:00:00]} 3. Nf3 {[%emt 0:00:00]} Nf6 {[%emt 0:00:00]} 4. Nc3 {[%emt 0:00:00]} dxc4 {[%emt 0:00:00]} 5. e3 {[%emt 0:00:00]} b5 {[%emt 0:00:00]} 6. a4 {[%emt 0:00:00]} b4 {[%emt 0:00:00]} 7. Nb1 {[%emt 0:00:00]} Ba6 {[%emt 0:00:00]} 8. Be2 {[%emt 0:00:00]} c5 {[%emt 0:00:00]} 9. Nbd2 {[%emt 0:00:00]} c3 {[%emt 0:03:00]} 10. bxc3 {[%emt 0:00:00]} bxc3 {[%emt 0:00:00]} 11. Nb1 {[%emt 0:00:00]} Bxe2 {[%emt 0:00:00]} 12. Qxe2 {[%emt 0:00:00]} Nc6 {[%emt 0:22:00]} 13. O-O {[%emt 0:21:00]} cxd4 {[%emt 0:00:00]} 14. exd4 {[%emt 0:00:00]} Nd5 {[%emt 0:18:00]} 15. Qc4 Rc8 {[%emt 0:08:00]} 16. Nxc3 {[%emt 0:22:00]} Nxc3 17. Qxc3 {[%emt 0:00:00]} e6 {[%emt 0:07:00]} 18. d5 {[%emt 0:08:00]} Nb4 19. Qe5 {[%emt 0:03:00]} Nxd5 {[%emt 0:19:00]} 20. Bg5 {[%emt 0:26:12]} Qd7 {[%emt 0:03:12]} 21. Rfe1 {[%emt 0:05:29]} f6 {[%emt 0:06:35]} 22. Qe4 {[%emt 0:00:36]} Bc5 {[%emt 0:01:33]} 23. Bh4 {[%emt 0:01:17]} Kf7 {[%emt 0:09:40]} 24. Rad1 {[%emt 0:02:48]} h6 {[%emt 0:00:00]} 25. Bg3 {[%emt 0:00:00]} Rhe8 {[%emt 0:00:00]} 26. Qh7 {[%emt 0:00:44]} Qxa4 {[%emt 0:00:00]} 27. Be5 {[%emt 0:05:41]} Bb6 {[%emt 0:00:00]} 28. Bxf6 {[%emt 0:00:35]} Kxf6 {[%emt 0:00:00]} 29. Ne5 {[%emt 0:00:00]} Qc2 30. Ng4+ {[%emt 0:00:29]} Kf7 {[%emt 0:00:00]} 31. Nxh6+ {[%emt 0:00:20]} Kf6 {[%emt 0:00:00]} 32. Ng4+ {[%emt 0:00:00]} Kf7 {[%emt 0:00:00]} 33. Ne5+ {[%emt 0:00:29]} Kf6 {[%emt 0:00:00]} 34. Qh4+ Kf5 {[%emt 0:00:55]} 35. Qg4+ {[%emt 0:00:10]} Kf6 {[%emt 0:00:00]} 36. Qh4+ {[%emt 0:00:00]} Kf5 {[%emt 0:00:00]} 37. g4+ Kf4 {[%emt 0:00:00]} 38. Nd3+ {[%emt 0:00:00]} 1-0

[Event "Cesenatico Open 2019"]
[Site "Cesenatico"]
[Date "2019.09.07"]
[Round "8"]
[White "Genocchio, Daniele"]
[Black "Kacani, Kirk"]
[Result "1-0"]
[ECO "A13"]
[WhiteElo "2354"]
[BlackElo "2091"]
[Annotator "ChessBase"]
[PlyCount "71"]
[EventDate "2019.09.01"]
[EventType "swiss"]
[EventCountry "ITA"]
[SourceTitle "playchess.com"]
[Source "ChessBase"]
[SourceQuality "1"]
[TimeControl "40/6000:900"]

1. Nf3 {[%emt 0:00:00]} Nf6 {[%emt 0:00:00]} 2. c4 {[%emt 0:00:00]} e6 {[%emt 0:00:00]} 3. e3 {[%emt 0:00:00]} b6 {[%emt 0:01:00]} 4. b3 {[%emt 0:00:00]} Bb7 5. Be2 {[%emt 0:00:00]} Be7 {[%emt 0:00:00]} 6. O-O O-O {[%emt 0:00:00]} 7. Bb2 {[%emt 0:00:00]} d5 {[%emt 0:04:00]} 8. d4 {[%emt 0:05:00]} Nbd7 {[%emt 0:00:00]} 9. Nbd2 {[%emt 0:00:00]} c5 {[%emt 0:06:00]} 10. Rc1 {[%emt 0:00:00]} Ne4 {[%emt 0:05:00]} 11. cxd5 {[%emt 0:01:00]} exd5 {[%emt 0:00:00]} 12. dxc5 {[%emt 0:03:00]} Ndxc5 {[%emt 0:15:00]} 13. Rc2 {[%emt 0:14:00]} Rc8 {[%emt 0:00:00]} 14. Nd4 {[%emt 0:13:00]} Bf6 {[%emt 0:22:00]} 15. N2f3 a6 {[%emt 0:11:00]} 16. b4 {[%emt 0:12:00]} Nd7 {[%emt 0:03:00]} 17. Rxc8 {[%emt 0:00:00]} Qxc8 {[%emt 0:00:00]} 18. Bd3 {[%emt 0:12:00]} Nd6 {[%emt 0:00:00]} 19. Qb1 {[%emt 0:04:00]} g6 {[%emt 0:13:00]} 20. Ne2 {[%emt 0:01:00]} Nc4 {[%emt 0:02:34]} 21. Bxf6 {[%emt 0:00:00]} Nxf6 {[%emt 0:00:00]} 22. Qa1 Ne4 {[%emt 0:00:00]} 23. Rc1 {[%emt 0:04:00]} Qc7 {[%emt 0:00:00]} 24. Nf4 {[%emt 0:06:00]} b5 {[%emt 0:14:57]} 25. Qd4 {[%emt 0:23:10]} Qd6 {[%emt 0:00:39]} 26. a3 {[%emt 0:00:00]} Rd8 {[%emt 0:00:00]} 27. h4 {[%emt 0:00:00]} h5 {[%emt 0:00:00]} 28. Ra1 {[%emt 0:00:51]} Qe7 {[%emt 0:00:51]} 29. a4 {[%emt 0:00:00]} Qd7 {[%emt 0:00:00]} 30. axb5 {[%emt 0:00:00]} Qxb5 {[%emt 0:00:25]} 31. Bxe4 Qxb4 {[%emt 0:00:00]} 32. Bxg6 {[%emt 0:00:00]} fxg6 33. Nxg6 {[%emt 0:00:00]} Kh7 {[%emt 0:00:00]} 34. Qf6 Qb2 {[%emt 0:00:00]} 35. Ng5+ {[%emt 0:00:00]} Kh6 36. Ne5# {[%emt 0:00:00]} 1-0

[Event "Cesenatico Open 2019"]
[Site "Cesenatico"]
[Date "2019.09.07"]
[Round "8"]
[White "Damia, Angelo"]
[Black "Loiacono, Leonardo"]
[Result "1/2-1/2"]
[ECO "C45"]
[WhiteElo "2240"]
[BlackElo "2293"]
[Annotator "ChessBase"]
[PlyCount "67"]
[EventDate "2019.09.01"]
[EventType "swiss"]
[EventCountry "ITA"]
[SourceTitle "playchess.com"]
[Source "ChessBase"]
[SourceQuality "1"]
[TimeControl "40/6000:900"]

1. e4 {[%emt 0:10:00]} e5 {[%emt 0:00:00]} 2. Nf3 {[%emt 0:00:00]} Nc6 {[%emt 0:09:00]} 3. d4 {[%emt 0:00:00]} exd4 {[%emt 0:00:00]} 4. Nxd4 {[%emt 0:00:00]} Nf6 {[%emt 0:00:00]} 5. Nxc6 {[%emt 0:00:00]} bxc6 {[%emt 0:00:00]} 6. e5 {[%emt 0:00:00]} Qe7 {[%emt 0:00:00]} 7. Qe2 {[%emt 0:00:00]} Nd5 {[%emt 0:00:00]} 8. c4 Ba6 {[%emt 0:00:00]} 9. b3 {[%emt 0:00:00]} Qh4 {[%emt 0:00:00]} 10. a3 {[%emt 0:00:00]} Nf4 {[%emt 0:00:00]} 11. Qe4 {[%emt 0:16:00]} Ng6 {[%emt 0:16:00]} 12. Qxh4 {[%emt 0:00:00]} Nxh4 {[%emt 0:00:00]} 13. Nd2 {[%emt 0:00:00]} c5 {[%emt 0:00:00]} 14. g3 {[%emt 0:02:00]} Nf5 {[%emt 0:00:00]} 15. Bd3 {[%emt 0:00:00]} Nd4 {[%emt 0:00:00]} 16. Bb2 {[%emt 0:01:00]} Bb7 {[%emt 0:00:00]} 17. O-O {[%emt 0:00:00]} Nf3+ {[%emt 0:00:00]} 18. Nxf3 {[%emt 0:00:00]} Bxf3 {[%emt 0:04:00]} 19. Rfe1 {[%emt 0:00:00]} Rb8 {[%emt 0:00:00]} 20. Bc2 {[%emt 0:00:00]} h5 {[%emt 0:00:00]} 21. h3 {[%emt 0:06:00]} Rg8 {[%emt 0:00:00]} 22. Re3 {[%emt 0:00:00]} Bc6 {[%emt 0:00:00]} 23. h4 {[%emt 0:03:00]} g6 {[%emt 0:02:00]} 24. f4 Kd8 {[%emt 0:00:00]} 25. Rd1 {[%emt 0:07:00]} Kc8 {[%emt 0:00:00]} 26. Bc3 {[%emt 0:00:00]} d6 {[%emt 0:09:00]} 27. Kf2 {[%emt 0:14:00]} dxe5 28. Bxe5 {[%emt 0:00:00]} Kb7 {[%emt 0:11:00]} 29. Re2 {[%emt 0:00:00]} Re8 {[%emt 0:04:00]} 30. Red2 {[%emt 0:14:00]} Bg7 {[%emt 0:03:00]} 31. Bxg7 {[%emt 0:00:00]} Rxg7 {[%emt 0:00:00]} 32. Rd8 {[%emt 0:15:58]} Rxd8 33. Rxd8 {[%emt 0:00:00]} f5 {[%emt 0:01:00]} 34. Bd1 {[%emt 0:00:00]} 1/2-1/2

[Event "Cesenatico Open 2019"]
[Site "Cesenatico"]
[Date "2019.09.07"]
[Round "8"]
[White "Di Trapani, Davide"]
[Black "Djuric, Stefan"]
[Result "1/2-1/2"]
[ECO "B07"]
[WhiteElo "2181"]
[BlackElo "2358"]
[Annotator "ChessBase"]
[PlyCount "32"]
[EventDate "2019.09.01"]
[EventType "swiss"]
[EventCountry "ITA"]
[SourceTitle "playchess.com"]
[Source "ChessBase"]
[SourceQuality "1"]
[TimeControl "40/6000:900"]

1. e4 {[%emt 0:05:00]} d6 {[%emt 0:08:00]} 2. d4 {[%emt 0:00:00]} Nf6 {[%emt 0:00:00]} 3. Nc3 {[%emt 0:00:00]} g6 {[%emt 0:00:00]} 4. Bg5 {[%emt 0:00:00]} Bg7 5. Qd2 {[%emt 0:00:00]} h6 {[%emt 0:00:00]} 6. Bh4 {[%emt 0:00:00]} g5 {[%emt 0:00:00]} 7. Bg3 {[%emt 0:00:00]} Nh5 {[%emt 0:04:00]} 8. O-O-O {[%emt 0:16:00]} Nc6 {[%emt 0:09:00]} 9. Qe3 {[%emt 0:00:00]} Bd7 {[%emt 0:04:00]} 10. Be2 {[%emt 0:06:00]} Nxg3 {[%emt 0:23:00]} 11. hxg3 {[%emt 0:00:00]} e5 12. d5 {[%emt 0:02:00]} Nd4 {[%emt 0:01:00]} 13. Bh5 {[%emt 0:03:00]} c5 14. f4 {[%emt 0:09:00]} exf4 {[%emt 0:23:00]} 15. gxf4 {[%emt 0:36:00]} gxf4 {[%emt 0:05:00]} 16. Qxf4 {[%emt 0:00:00]} Qg5 {[%emt 0:02:00]} 1/2-1/2